lending/lending_fUSD_20250516
["ID","MTS","AMOUNT","RATE_DAILY","PERIOD"]
[361253849,1747396246567,-400.0,0.00016438,2]
[361253850,1747396246576,-400.0,0.00016438,2]
[361253851,1747396246585,-151.0,0.00016438,2]
[361253852,1747396246595,-400.0,0.00016438,2]
[361253853,1747396246604,-400.0,0.00016438,2]
[361253854,1747396246614,-400.0,0.00016438,2]
[361253855,1747396246623,-993.92,0.00016438,2]
[361253856,1747396246632,-629.85,0.00016438,2]
[361253857,1747396246642,-508.64,0.00016438,2]
[361253858,1747396246651,-449.09,0.00016438,2]
[361253859,1747396246661,-400.0,0.00016438,2]
[361253860,1747396246670,-597.16,0.00016438,2]
[361253861,1747396246680,-400.0,0.00016438,2]
[361253862,1747396246689,-400.0,0.00016438,2]
[361253863,1747396246698,-400.0,0.00016438,2]
[361253864,1747396246708,-400.0,0.00016438,2]
[361253865,1747396246718,-400.0,0.00016438,2]
[361253866,1747396246727,-400.0,0.00016438,2]
[361253867,1747396246737,-400.0,0.00016438,2]
[361253868,1747396246746,-339.6858797,0.00016438,2]
[361253869,1747396246755,-400.0,0.00016438,2]
[361253870,1747396246765,-400.0,0.00016438,2]
[361253871,1747396246774,-400.0,0.00016438,2]
[361253872,1747396246783,-400.0,0.00016438,2]
[361253873,1747396246793,-400.0,0.00016438,2]
[361253874,1747396246802,-507.10117594,0.00016438,2]
[361253875,1747396246811,-400.0,0.00016438,2]
[361253876,1747396246821,-400.0,0.00016438,2]
[361253877,1747396246831,-400.0,0.00016438,2]
[361253878,1747396246841,-400.0,0.00016438,2]
[361253879,1747396246851,-400.0,0.00016438,2]
[361253880,1747396246860,-400.0,0.00016438,2]
[361253881,1747396246870,-400.0,0.00016438,2]
[361253882,1747396246879,-400.09,0.00016438,2]
[361253883,1747396246888,-442.92,0.00016438,2]
[361253884,1747396246898,-400.0,0.00016438,2]
[361253885,1747396246907,-400.0,0.00016438,2]
[361253886,1747396246917,-216.926684,0.00016438,2]
[361253887,1747396246926,-400.0,0.00016438,2]
[361253888,1747396246935,-400.0,0.00016438,2]
[361253889,1747396246944,-400.0,0.00016438,2]
[361253890,1747396246954,-400.0,0.00016438,2]
[361253891,1747396246963,-400.0,0.00016438,2]
[361253892,1747396246973,-400.0,0.00016438,2]
[361253893,1747396246982,-400.0,0.00016438,2]
[361253894,1747396246991,-400.0,0.00016438,2]
[361253895,1747396247001,-400.0,0.00016438,2]
[361253896,1747396247010,-400.0,0.00016438,2]
[361253897,1747396247020,-539.83,0.00016438,2]
[361253898,1747396247030,-400.0,0.00016438,2]
[361253899,1747396247039,-400.0,0.00016438,2]
[361253900,1747396247048,-255.47776866,0.00016438,2]
[361253901,1747396247058,-586.44,0.00016438,2]
[361253902,1747396247067,-400.0,0.00016438,2]
[361253903,1747396247077,-400.0,0.00016438,2]
[361253904,1747396247086,-291.30723027,0.00016438,2]
[361253905,1747396247095,-400.0,0.00016438,2]
[361253906,1747396247105,-400.0,0.00016438,2]
[361253907,1747396247115,-400.0,0.00016438,2]
[361253908,1747396247125,-593.46,0.00016438,2]
[361253909,1747396247134,-400.0,0.00016438,2]
[361253910,1747396247148,-461.89,0.00016438,2]
[361253911,1747396247158,-400.0,0.00016438,2]
[361253912,1747396247168,-230.47351215,0.00016438,2]
[361253913,1747396247756,-515.47648785,0.00016438,2]
[361253914,1747396247765,-400.0,0.00016438,2]
[361253915,1747396247775,-400.0,0.00016438,2]
[361253916,1747396247784,-400.0,0.00016438,2]
[361253917,1747396247794,-400.0,0.00016438,2]
[361253918,1747396247805,-400.0,0.00016438,2]
[361253919,1747396247814,-400.0,0.00016438,2]
[361253920,1747396247823,-595.34,0.00016438,2]
[361253921,1747396247833,-400.0,0.00016438,2]
[361253922,1747396247842,-449.36,0.00016438,2]
[361253923,1747396247851,-400.0,0.00016438,2]
[361253924,1747396247860,-514.65743464,0.00016438,2]
[361253925,1747396247870,-400.0,0.00016438,2]
[361253926,1747396247879,-400.0,0.00016438,2]
[361253927,1747396247889,-400.0,0.00016438,2]
[361253928,1747396247898,-400.0,0.00016438,2]
[361253929,1747396247907,-252.32882458,0.00016438,2]
[361253930,1747396247916,-400.0,0.00016438,2]
[361253931,1747396247925,-412.87480679,0.00016438,2]
[361253932,1747396247934,-400.0,0.00016438,2]
[361253933,1747396247943,-400.0,0.00016438,2]
[361253934,1747396247952,-400.0,0.00016438,2]
[361253935,1747396247961,-400.0,0.00016438,2]
[361253936,1747396247970,-400.0,0.00016438,2]
[361253937,1747396247980,-404.49677882,0.00016438,2]
[361253938,1747396247989,-400.0,0.00016438,2]
[361253939,1747396247998,-492.06347513,0.00016438,2]
[361253940,1747396248008,-400.0,0.00016438,2]
[361253941,1747396248017,-400.0,0.00016438,2]
[361253942,1747396248026,-400.0,0.00016438,2]
[361253943,1747396248036,-400.0,0.00016438,2]
[361253944,1747396248046,-400.0,0.00016438,2]
[361253945,1747396248056,-684.93,0.00016438,2]
[361253946,1747396248066,-178.64226975,0.00016438,2]
[361253947,1747396248075,-400.0,0.00016438,2]
[361253948,1747396248085,-400.0,0.00016438,2]
[361253949,1747396248094,-759.34,0.00016438,2]
[361253950,1747396248104,-400.0,0.00016438,2]
[361253951,1747396248114,-400.0,0.00016438,2]
[361253952,1747396248124,-498.7,0.00016438,2]
[361253953,1747396248134,-400.0,0.00016438,2]
[361253954,1747396248151,-159.856234,0.00016438,2]
[361253955,1747396248169,-195.34571905,0.00016438,2]
[361253956,1747396248181,-400.0,0.00016438,2]
[361253957,1747396248190,-400.0,0.00016438,2]
[361253958,1747396248200,-400.0,0.00016438,2]
[361253959,1747396248209,-400.0,0.00016438,2]
[361253960,1747396248219,-400.0,0.00016438,2]
[361253961,1747396248228,-400.0,0.00016438,2]
[361253962,1747396248237,-408.39118103,0.00016438,2]
[361253963,1747396248246,-400.0,0.00016438,2]
[361253964,1747396248255,-400.0,0.00016438,2]
[361253965,1747396248264,-400.0,0.00016438,2]
[361253966,1747396248274,-400.0,0.00016438,2]
[361253967,1747396248283,-400.0,0.00016438,2]
[361253968,1747396248292,-400.0,0.00016438,2]
[361253969,1747396248302,-400.0,0.00016438,2]
[361253970,1747396248311,-400.0,0.00016438,2]
[361253971,1747396248320,-400.0,0.00016438,2]
[361253972,1747396248330,-400.0,0.00016438,2]
[361253973,1747396248339,-695.44,0.00016438,2]
[361253974,1747396248348,-400.0,0.00016438,2]
[361253975,1747396248358,-400.0,0.00016438,2]
[361253976,1747396248367,-400.0,0.00016438,2]
[361253977,1747396248377,-400.0,0.00016438,2]
[361253978,1747396248387,-400.0,0.00016438,2]
[361253979,1747396248396,-400.0,0.00016438,2]
[361253980,1747396248406,-400.0,0.00016438,2]
[361253981,1747396248415,-150.39055178,0.00016438,2]
[361253982,1747396248424,-553.56,0.00016438,2]
[361253983,1747396248434,-400.0,0.00016438,2]
[361253984,1747396248443,-400.0,0.00016438,2]
[361253985,1747396248452,-400.0,0.00016438,2]
[361253986,1747396248462,-500.0,0.00016438,2]
[361253987,1747396248472,-500.0,0.00016438,2]
[361253988,1747396248481,-500.0,0.00016438,2]
[361253989,1747396248490,-400.0,0.00016438,2]
[361253990,1747396248499,-400.0,0.00016438,2]
[361253991,1747396248507,-400.0,0.00016438,2]
[361253992,1747396248517,-400.0,0.00016438,2]
[361253993,1747396248526,-400.0,0.00016438,2]
[361253994,1747396248535,-400.0,0.00016438,2]
[361253995,1747396248767,-400.0,0.00016438,2]
[361253996,1747396248832,-400.0,0.00016438,2]
[361253997,1747396248843,-5046.54780132,0.00016438,2]
[361253998,1747396248852,-657.73,0.00016438,2]
[361253999,1747396248862,-400.0,0.00016438,2]
[361254000,1747396248872,-400.0,0.00016438,2]
[361254001,1747396248881,-1431.51,0.00016438,2]
[361254002,1747396248891,-400.0,0.00016438,2]
[361254003,1747396248900,-400.0,0.00016438,2]
[361254004,1747396248909,-400.0,0.00016438,2]
[361254005,1747396248918,-400.0,0.00016438,2]
[361254006,1747396248927,-400.0,0.00016438,2]
[361254007,1747396248936,-400.0,0.00016438,2]
[361254008,1747396248945,-151.0,0.00016438,2]
[361254009,1747396248954,-400.0,0.00016438,2]
[361254010,1747396248964,-151.0,0.00016438,2]
[361254011,1747396248973,-400.0,0.00016438,2]
[361254012,1747396248983,-517.79,0.00016438,2]
[361254013,1747396248993,-924.74279285,0.00016438,2]
[361254014,1747396249053,-481.24720715,0.00016438,2]
[361254015,1747396249062,-400.0,0.00016438,2]
[361254016,1747396249073,-206.54408961,0.00016438,2]
[361254017,1747396249853,-162.68,0.00015342,2]
[361254018,1747396249863,-193.45591039,0.00016438,2]
[361254019,1747396249873,-400.0,0.00016438,2]
[361254020,1747396249883,-1327.1,0.00016438,2]
[361254021,1747396249892,-151.0,0.00016438,2]
[361254022,1747396249902,-451.19,0.00016438,2]
[361254023,1747396249912,-430.04,0.00016438,2]
[361254024,1747396249922,-400.0,0.00016438,2]
[361254025,1747396249931,-400.0,0.00016438,2]
[361254026,1747396249941,-400.0,0.00016438,2]
[361254027,1747396249950,-400.0,0.00016438,2]
[361254028,1747396249960,-292.2226602,0.00016438,2]
[361254029,1747396249969,-400.0,0.00016438,2]
[361254030,1747396249979,-400.0,0.00016438,2]
[361254031,1747396249989,-400.0,0.00016438,2]
[361254032,1747396249999,-400.0,0.00016438,2]
[361254033,1747396250009,-474.78,0.00016438,2]
[361254034,1747396250018,-203.34381,0.00016438,2]
[361254035,1747396250027,-400.0,0.00016438,2]
[361254036,1747396250036,-859.48,0.00016438,2]
[361254037,1747396250046,-400.0,0.00016438,2]
[361254038,1747396250055,-571.35,0.00016438,2]
[361254039,1747396250064,-400.0,0.00016438,2]
[361254040,1747396250074,-452.56,0.00016438,2]
[361254041,1747396250083,-0.79761942,0.00016438,2]
[361254042,1747396250146,-399.20238058,0.00016438,2]
[361254043,1747396250156,-400.0,0.00016438,2]
[361254044,1747396250166,-400.0,0.00016438,2]
[361254045,1747396250175,-400.0,0.00016438,2]
[361254046,1747396250184,-383.0365024,0.00016438,2]
[361254047,1747396250194,-400.0,0.00016438,2]
[361254048,1747396250204,-400.0,0.00016438,2]
[361254049,1747396250213,-529.89,0.00016438,2]
[361254050,1747396250225,-764.07,0.00016438,2]
[361254051,1747396250234,-400.0,0.00016438,2]
[361254052,1747396250243,-400.0,0.00016438,2]
[361254053,1747396250253,-571.98,0.00016438,2]
[361254054,1747396250262,-400.0,0.00016438,2]
[361254055,1747396250271,-400.0,0.00016438,2]
[361254056,1747396250280,-400.0,0.00016438,2]
[361254057,1747396250289,-962.52,0.00016438,2]
[361254058,1747396250298,-213.09197606,0.00016438,2]
[361254059,1747396250311,-186.90802394,0.00016438,2]
[361254060,1747396250320,-335.64197606,0.00016438,2]
[361254061,1747396250387,-338.47802394,0.00016438,2]
[361254062,1747396250396,-407.31956432,0.00016438,2]
[361254063,1747396250406,-399.38226489,0.00016438,2]
[361254064,1747396250415,-400.0,0.00016438,2]
[361254065,1747396250425,-400.0,0.00016438,2]
[361254066,1747396250434,-400.0,0.00016438,2]
[361254067,1747396250443,-1447.48,0.00016438,2]
[361254068,1747396250453,-400.0,0.00016438,2]
[361254069,1747396250462,-1018.80502247,0.00016438,2]
[361254070,1747396250480,-56.47497753,0.00016438,2]
[361254071,1747396250490,-953.21,0.00016438,2]
[361254072,1747396250499,-1126.54,0.00016438,2]
[361254073,1747396250508,-400.0,0.00016438,2]
[361254074,1747396250518,-400.0,0.00016438,2]
[361254075,1747396250528,-400.0,0.00016438,2]
[361254076,1747396250538,-400.0,0.00016438,2]
[361254077,1747396250547,-400.0,0.00016438,2]
[361254078,1747396250557,-151.338107,0.00016438,2]
[361254079,1747396250566,-400.0,0.00016438,2]
[361254080,1747396250576,-400.0,0.00016438,2]
[361254081,1747396250585,-980.16,0.00016438,2]
[361254082,1747396250595,-400.0,0.00016438,2]
[361254083,1747396250604,-400.0,0.00016438,2]
[361254084,1747396250614,-400.0,0.00016438,2]
[361254085,1747396250623,-400.0,0.00016438,2]
[361254086,1747396250633,-400.0,0.00016438,2]
[361254087,1747396250642,-400.0,0.00016438,2]
[361254088,1747396250652,-400.0,0.00016438,2]
[361254089,1747396250661,-67.71274136,0.00016438,2]
[361254090,1747396318678,160.08,0.00021945,30]
[361254092,1747397157125,450.0,0.0001,2]
[361254093,1747397353964,320.0,0.00027397,120]
[361254095,1747397428069,160.08,0.00021945,30]
[361254099,1747397432376,-500.0,0.00012,2]
[361254101,1747397432385,-250.0,0.00012438,2]
[361254103,1747397432396,-250.0,0.00012845,2]
[361254105,1747397432406,-1000.0,0.00012876,2]
[361254107,1747397432415,-303.65,0.0001315,2]
[361254109,1747397432425,-250.0,0.000132,2]
[361254111,1747397432434,-689.16,0.00013255,2]
[361254113,1747397432444,-1000.0,0.00013699,2]
[361254115,1747397432453,-550.0,0.00014,2]
[361254117,1747397432463,-831.50232,0.00014628,2]
[361254119,1747397432472,-430.3,0.00014745,2]
[361254121,1747397432481,-449.13,0.00014777,2]
[361254123,1747397432491,-2170.36,0.000148,2]
[361254125,1747397432500,-1200.0,0.00014933,2]
[361254127,1747397432510,-300.0,0.00014933,2]
[361254129,1747397432519,-250.0,0.00014934,2]
[361254131,1747397432530,-2751.0,0.00014947,2]
[361254132,1747397432541,-200.0,0.00014955,2]
[361254133,1747397432551,-230.62172735,0.00015,2]
[361254134,1747397432560,-1000.0,0.00015021,2]
[361254136,1747397432571,-10674.01,0.00015233,2]
[361254138,1747397432580,-165.75,0.0001528,2]
[361254140,1747397432590,-258.57,0.00015344,2]
[361254142,1747397432599,-165.24,0.00015368,2]
[361254144,1747397432608,-701.5,0.00015427,2]
[361254146,1747397432618,-150.0,0.00015445,7]
[361254148,1747397432627,-256.97,0.000155,2]
[361254150,1747397432636,-2170.36,0.000155,2]
[361254152,1747397432646,-150.0,0.00015501,2]
[361254154,1747397432655,-689.16,0.00015519,2]
[361254156,1747397432664,-2170.36,0.000156,2]
[361254158,1747397432673,-200.0,0.00015643,2]
[361254160,1747397432682,-172.19,0.00015668,2]
[361254162,1747397432692,-2170.36,0.000157,2]
[361254164,1747397432701,-2170.36,0.000157,2]
[361254166,1747397432711,-300.0,0.000157,5]
[361254168,1747397432720,-151.0,0.00015727,2]
[361254170,1747397432729,-487.37366575,0.00015727,2]
[361254172,1747397432739,-845.52807468,0.00015727,2]
[361254174,1747397432748,-668.65185757,0.00015727,2]
[361254176,1747397432758,-207.4,0.00015727,2]
[361254178,1747397432767,-700.0,0.000158,5]
[361254180,1747397432777,-150.0,0.0001589,2]
[361254182,1747397432786,-1100.0,0.000159,5]
[361254184,1747397432799,-600.0,0.00016,2]
[361254186,1747397432809,-750.0,0.00016218,2]
[361254188,1747397432818,-340.0,0.00016264,2]
[361254190,1747397432828,-693.3919763,0.00016275,2]
[361254192,1747397432837,-1178.0,0.000163,2]
[361254194,1747397432847,-750.0,0.00016318,2]
[361254196,1747397432857,-407.93726836,0.00016326,2]
[361254198,1747397432866,-2721.02041558,0.00016327,2]
[361254200,1747397432875,-1522.5238,0.00016334,2]
[361254202,1747397432884,-317.6477,0.00016335,2]
[361254204,1747397432894,-1031.1,0.00016338,2]
[361254206,1747397432909,-164.88212132,0.00016338,2]
[361254208,1747397432918,-603.93375758,0.00016338,2]
[361254210,1747397432927,-1821.39591272,0.00016338,2]
[361254212,1747397432937,-167.64719795,0.00016338,2]
[361254214,1747397432946,-167.9621666,0.00016338,2]
[361254216,1747397432955,-163.72368475,0.00016338,2]
[361254218,1747397432965,-923.6662,0.00016338,2]
[361254220,1747397432974,-2500.0,0.00016338,2]
[361254222,1747397432983,-420.0,0.00016344,2]
[361254223,1747397432992,-750.0,0.00016418,2]
[361254225,1747397433001,-1548.77,0.00016418,2]
[361254227,1747397433011,-1680.0,0.00016426,2]
[361254229,1747397433020,-1317.63,0.00016428,2]
[361254231,1747397433030,-1821.39591267,0.00016429,2]
[361254233,1747397433040,-162.68,0.00016431,2]
[361254236,1747397433054,-300.0,0.00016431,2]
[361254238,1747397433065,-152.1,0.00016431,2]
[361254239,1747397433074,-452.63,0.00016431,2]
[361254241,1747397433085,-150.0,0.00016431,2]
[361254243,1747397433095,-408.61,0.00016437,2]
[361254246,1747397433106,-169.73963846,0.00016438,2]
[361254247,1747397433116,-158.162747,0.00016438,2]
[361254250,1747397433127,-465.193664,0.00016438,2]
[361254252,1747397433138,-400.0,0.00016438,2]
[361254253,1747397433149,-526.8065255,0.00016438,2]
[361254255,1747397433161,-400.0,0.00016438,2]
[361254258,1747397433174,-400.0,0.00016438,2]
[361254260,1747397433187,-294.98781008,0.00016438,2]
[361254262,1747397433197,-400.0,0.00016438,2]
[361254264,1747397433207,-412.70950897,0.00016438,2]
[361254266,1747397433217,-178.005754,0.00016438,2]
[361254268,1747397433227,-400.0,0.00016438,2]
[361254270,1747397433238,-406.74135205,0.00016438,2]
[361254272,1747397433249,-157.605819,0.00016438,2]
[361254274,1747397433259,-400.0,0.00016438,2]
[361254276,1747397433270,-508.93715235,0.00016438,2]
[361254278,1747397433281,-211.890599,0.00016438,2]
[361254280,1747397433292,-211.890599,0.00016438,2]
[361254282,1747397433307,-211.890599,0.00016438,2]
[361254284,1747397433317,-211.890599,0.00016438,2]
[361254286,1747397433327,-211.890599,0.00016438,2]
[361254288,1747397433337,-211.890599,0.00016438,2]
[361254290,1747397433346,-400.86623011,0.00016438,2]
[361254292,1747397433356,-566.76,0.00016438,2]
[361254294,1747397433367,-400.0,0.00016438,2]
[361254296,1747397433378,-151.0,0.00016438,2]
[361254298,1747397433389,-151.0,0.00016438,2]
[361254300,1747397433399,-162.219803,0.00016438,2]
[361254302,1747397433410,-400.0,0.00016438,2]
[361254304,1747397433420,-379.56131966,0.00016438,2]
[361254306,1747397433430,-151.0,0.00016438,2]
[361254308,1747397433441,-173.3664,0.00016438,2]
[361254310,1747397433452,-151.0,0.00016438,2]
[361254312,1747397433463,-151.0,0.00016438,2]
[361254314,1747397433473,-151.0,0.00016438,2]
[361254316,1747397433483,-151.0,0.00016438,2]
[361254318,1747397433494,-400.0,0.00016438,2]
[361254320,1747397433505,-400.0,0.00016438,2]
[361254322,1747397433515,-151.0,0.00016438,2]
[361254324,1747397433526,-295.933838,0.00016438,2]
[361254326,1747397433536,-400.0,0.00016438,2]
[361254328,1747397433552,-400.0,0.00016438,2]
[361254330,1747397433562,-400.0,0.00016438,2]
[361254332,1747397433573,-400.0,0.00016438,2]
[361254334,1747397433582,-400.0,0.00016438,2]
[361254336,1747397433592,-400.0,0.00016438,2]
[361254338,1747397433602,-400.0,0.00016438,2]
[361254340,1747397433611,-400.0,0.00016438,2]
[361254342,1747397433620,-489.21586008,0.00016438,2]
[361254344,1747397433630,-417.68644674,0.00016438,2]
[361254346,1747397433639,-400.0,0.00016438,2]
[361254348,1747397433650,-400.0,0.00016438,2]
[361254350,1747397433660,-400.0,0.00016438,2]
[361254352,1747397433669,-400.0,0.00016438,2]
[361254354,1747397433679,-400.0,0.00016438,2]
[361254356,1747397433689,-400.0,0.00016438,2]
[361254357,1747397433700,-482.09,0.00016438,2]
[361254358,1747397433710,-400.0,0.00016438,2]
[361254359,1747397433720,-400.0,0.00016438,2]
[361254360,1747397433732,-400.0,0.00016438,2]
[361254361,1747397433742,-482.52,0.00016438,2]
[361254362,1747397433753,-528.25,0.00016438,2]
[361254363,1747397433763,-400.0,0.00016438,2]
[361254364,1747397433772,-488.33,0.00016438,2]
[361254365,1747397433783,-252.19481911,0.00016438,2]
[361254366,1747397433796,-524.48,0.00016438,2]
[361254367,1747397433806,-400.0,0.00016438,2]
[361254368,1747397433815,-400.0,0.00016438,2]
[361254369,1747397433825,-402.02804778,0.00016438,2]
[361254370,1747397433836,-400.0,0.00016438,2]
[361254371,1747397433846,-474.78,0.00016438,2]
[361254372,1747397433856,-151.0,0.00016438,2]
[361254373,1747397433866,-400.0,0.00016438,2]
[361254374,1747397433876,-151.0,0.00016438,2]
[361254375,1747397433886,-461.95,0.00016438,2]
[361254376,1747397433896,-151.0,0.00016438,2]
[361254377,1747397433906,-400.0,0.00016438,2]
[361254378,1747397433916,-1063.81,0.00016438,2]
[361254379,1747397433930,-400.0,0.00016438,2]
[361254380,1747397433940,-400.0,0.00016438,2]
[361254381,1747397433950,-400.0,0.00016438,2]
[361254382,1747397433960,-400.0,0.00016438,2]
[361254383,1747397433971,-400.0,0.00016438,2]
[361254384,1747397433981,-400.0,0.00016438,2]
[361254385,1747397433990,-401.14856017,0.00016438,2]
[361254386,1747397434002,-400.0,0.00016438,2]
[361254387,1747397434011,-670.05,0.00016438,2]
[361254388,1747397434022,-400.0,0.00016438,2]
[361254389,1747397434032,-400.0,0.00016438,2]
[361254390,1747397434044,-439.86,0.00016438,2]
[361254391,1747397434054,-400.0,0.00016438,2]
[361254392,1747397434064,-400.0,0.00016438,2]
[361254393,1747397434074,-400.0,0.00016438,2]
[361254394,1747397434084,-400.0,0.00016438,2]
[361254395,1747397434094,-420.54,0.00016438,2]
[361254396,1747397434104,-400.0,0.00016438,2]
[361254397,1747397434114,-327.60204101,0.00016438,2]
[361254398,1747397434125,-151.0,0.00016438,2]
[361254399,1747397434136,-151.0,0.00016438,2]
[361254400,1747397434146,-400.0,0.00016438,2]
[361254401,1747397434156,-151.0,0.00016438,2]
[361254402,1747397434166,-400.0,0.00016438,2]
[361254403,1747397434176,-400.0,0.00016438,2]
[361254404,1747397434186,-187.855488,0.00016438,2]
[361254405,1747397434195,-400.0,0.00016438,2]
[361254406,1747397434205,-400.0,0.00016438,2]
[361254407,1747397434215,-400.0,0.00016438,2]
[361254408,1747397434224,-400.0,0.00016438,2]
[361254409,1747397434234,-400.0,0.00016438,2]
[361254410,1747397434245,-525.78779447,0.00016438,2]
[361254411,1747397434255,-524.77967298,0.00016438,2]
[361254412,1747397434264,-400.0,0.00016438,2]
[361254413,1747397434274,-400.0,0.00016438,2]
[361254414,1747397434283,-400.0,0.00016438,2]
[361254415,1747397434295,-1000.0,0.00016438,2]
[361254416,1747397434304,-1000.0,0.00016438,2]
[361254417,1747397434316,-1007.53628098,0.00016438,2]
[361254418,1747397434326,-400.0,0.00016438,2]
[361254419,1747397434335,-511.44,0.00016438,2]
[361254420,1747397434345,-400.0,0.00016438,2]
[361254421,1747397434355,-400.0,0.00016438,2]
[361254422,1747397434364,-400.0,0.00016438,2]
[361254423,1747397434373,-400.0,0.00016438,2]
[361254424,1747397434383,-400.0,0.00016438,2]
[361254425,1747397434392,-449.68,0.00016438,2]
[361254426,1747397434402,-400.0,0.00016438,2]
[361254427,1747397434411,-400.0,0.00016438,2]
[361254428,1747397434419,-481.63,0.00016438,2]
[361254429,1747397434428,-400.0,0.00016438,2]
[361254430,1747397434438,-761.14,0.00016438,2]
[361254431,1747397434667,-607.91,0.00016438,2]
[361254432,1747397434725,-675.34,0.00016438,2]
[361254433,1747397434735,-400.0,0.00016438,2]
[361254434,1747397434745,-442.01254993,0.00016438,2]
[361254435,1747397434754,-400.0,0.00016438,2]
[361254436,1747397434764,-400.0,0.00016438,2]
[361254437,1747397434772,-400.0,0.00016438,2]
[361254438,1747397434781,-400.0,0.00016438,2]
[361254439,1747397434791,-832.66,0.00016438,2]
[361254440,1747397434801,-400.0,0.00016438,2]
[361254441,1747397434811,-400.0,0.00016438,2]
[361254442,1747397434821,-400.0,0.00016438,2]
[361254443,1747397434830,-400.0,0.00016438,2]
[361254444,1747397434839,-400.0,0.00016438,2]
[361254445,1747397434854,-400.0,0.00016438,2]
[361254446,1747397434864,-400.0,0.00016438,2]
[361254447,1747397434874,-400.0,0.00016438,2]
[361254448,1747397434883,-400.0,0.00016438,2]
[361254449,1747397434892,-466.06,0.00016438,2]
[361254450,1747397434902,-400.0,0.00016438,2]
[361254451,1747397434911,-400.0,0.00016438,2]
[361254452,1747397434922,-515.69,0.00016438,2]
[361254453,1747397434931,-400.0,0.00016438,2]
[361254454,1747397434940,-151.0,0.00016438,2]
[361254455,1747397434949,-176.505184,0.00016438,2]
[361254456,1747397434958,-400.0,0.00016438,2]
[361254457,1747397434967,-500.0,0.00016438,2]
[361254458,1747397434977,-400.0,0.00016438,2]
[361254459,1747397434986,-400.0,0.00016438,2]
[361254460,1747397434996,-494.70867889,0.00016438,2]
[361254461,1747397435005,-400.0,0.00016438,2]
[361254462,1747397435014,-400.0,0.00016438,2]
[361254463,1747397435023,-400.0,0.00016438,2]
[361254464,1747397435033,-1005.89,0.00016438,2]
[361254465,1747397435045,-403.29327868,0.00016438,2]
[361254466,1747397435055,-400.0,0.00016438,2]
[361254467,1747397435065,-400.0,0.00016438,2]
[361254468,1747397435076,-805.23,0.00016438,2]
[361254469,1747397435086,-400.0,0.00016438,2]
[361254470,1747397435096,-400.0,0.00016438,2]
[361254471,1747397435106,-400.0,0.00016438,2]
[361254472,1747397435115,-460.04,0.00016438,2]
[361254473,1747397435125,-795.19,0.00016438,2]
[361254474,1747397435134,-400.0,0.00016438,2]
[361254475,1747397435143,-400.0,0.00016438,2]
[361254476,1747397435152,-400.0,0.00016438,2]
[361254477,1747397435162,-400.0,0.00016438,2]
[361254478,1747397435171,-395.24488693,0.00016438,2]
[361254479,1747397435180,-508.37,0.00016438,2]
[361254480,1747397435189,-400.0,0.00016438,2]